Cogmind - Beta 10.2 @@@ ROGUE MODE // 2021.05.18 @ 18:53:35 Player: MistressMomoko Result: Destroyed by EMP Trap Performance ------------- Evolutions (1) 500 Regions Visited (3) 600 Robots Destroyed (13) 65 Value Destroyed (205) 205 Prototype IDs (0) 0 Alien Tech Used (0) 0 Bonus (202) 202 TOTAL SCORE: 1572 Bonus ------- Pacifist 200 High Alert Combat Kills 2 Cogmind --------- Core Integrity 0/400 Matter 362/450 Energy 96/100 System Corruption 1% Temperature Cool (2) Movement Treading (160) Location -9/Materials Parts ------- > --- POWER (1) -------- (None) > --- PROPULSION (3) --- Light Treads Light Treads > --- UTILITY (3) ------ Small Storage Unit Compact Matter Pod Visual Processing Unit > --- WEAPON (2) ------- (None) > --- INVENTORY (6) ---- Light Ion Engine Light Assault Rifle Mining Laser Mining Laser Peak State ------------ > --- POWER ------------ (None) > --- PROPULSION ------- Wheel Compact Wheel > --- UTILITY ---------- Small Storage Unit Compact Matter Pod Visual Processing Unit > --- WEAPON ----------- Assault Rifle Grenade Launcher > --- INVENTORY -------- Light Ion Engine Light Treads Light Treads Light Assault Rifle Mining Laser Mining Laser [Rating: 10] Favorites ----------- Power Light Ion Engine Engine Light Ion Engine Propulsion Wheel Treads Light Treads Wheel Wheel Utility Small Storage Unit Storage Small Storage Unit Processor Visual Processing Unit Weapon Assault Rifle Ballistic Gun Assault Rifle Launcher Grenade Launcher Build | -11 -10 -10 -9 ------- Run | Scr Mat Min Mat Slots Evolved 2 | . . . 2 Power . | . . . . Propulsion 1 | . . . 1 Utility 1 | . . . 1 Weapon . | . . . . Parts Attached 16 | 6 . 1 9 Power 1 | 1 . . . Engine 1 | 1 . . . Core . | . . . . Reactor . | . . . . Propulsion 5 | 2 . . 3 Treads 2 | . . . 2 Leg . | . . . . Wheel 3 | 2 . . 1 Hover . | . . . . Flight . | . . . . Utility 3 | 1 . 1 1 Device . | . . . . Storage 2 | 1 . 1 . Processor 1 | . . . 1 Hackware . | . . . . Protection . | . . . . Artifact . | . . . . Weapon 7 | 2 . . 5 Energy Gun . | . . . . Energy Cannon . | . . . . Ballistic Gun 2 | 2 . . . Ballistic Cannon . | . . . . Launcher 5 | . . . 5 Special Weapon . | . . . . Impact Weapon . | . . . . Slashing Weapon . | . . . . Piercing Weapon . | . . . . Special Melee Weapon . | . . . . Unidentified Prototypes . | . . . . Parts Lost 9 | . . . 9 Power 1 | . . . 1 Propulsion 3 | . . . 3 Utility . | . . . . Weapon 5 | . . . 5 Highest Loss Streak 9 | . . . 9 Average Slot Usage (%) 81 | . 85 97 67 Engine 9 | . 14 14 5 Treads 2 | . . . 4 Wheel 21 | . 28 28 13 Storage 22 | . 14 25 22 Processor 2 | . . . 4 Ballistic Gun 20 | . 28 28 11 Launcher 2 | . . . 5 Naked Turns . | . . . . Heaviest Build 11 | 10 10 11 11 Greatest Support 40 | 20 20 20 40 Greatest Overweight (x) 3 | . . . 3 Average Overweight (x) . | . . . . Largest Inventory Capacity 6 | 6 6 6 6 Average Capacity 5 | 4 6 6 6 Most Carried 6 | 4 6 6 6 Average Carried 5 | 2 5 6 5 Final Capacity 6 | 6 6 6 6 Final Carried 6 | 4 6 6 4 Class Distribution -------------------- 100% | Mutant Dominant Class ---------------- Mutant | -10/Materials Mutant | -10/Mines Mutant | -9/Materials Resources | -11 -10 -10 -9 ----------- Run | Scr Mat Min Mat Matter Collected 408 | 197 . 77 134 Remotely . | . . . . Salvage Created 246 | . . . 246 Parts 17 | . . . 17 Haulers Intercepted 1 | . . . 1 Recyclers Shooed . | . . . . Parts Field Recycled . | . . . . Retrieved Matter . | . . . . Parts Self-Destructed . | . . . . Prevented . | . . . . Kills | -11 -10 -10 -9 ------- Run | Scr Mat Min Mat Combat Hostiles Destroyed 7 | . . . 7 Guns 3 | . . . 3 AOE 4 | . . . 4 Classes Destroyed 6 | . . . 6 Builder 1 | . . . 1 Hauler 1 | . . . 1 Recycler 2 | . . . 2 Watcher 2 | . . . 2 Swarmer 6 | . . . 6 Grunt 1 | . . . 1 Best Kill Streak 8 | . . . 8 Combat Bots Only 4 | . . . 4 Max Kills in Single Turn 3 | . . . 3 Gunslinging . | . . . . Exploded 3 | . . . 3 Melee . | . . . . Uniques/NPCs Destroyed . | . . . . Combat | -11 -10 -10 -9 -------- Run | Scr Mat Min Mat Damage Taken 1266 | . . 18 1248 Core 404 | . . . 404 Absorbed by Shields . | . . . . Core Remaining (%) 100 | 100 . 100 . Volleys Fired 18 | 1 . . 17 Largest 2 | 2 . . 2 Hottest 60 | 40 . . 60 Shots Fired 36 | 2 . . 34 Gun 23 | 2 . . 21 Cannon . | . . . . Launcher 13 | . . . 13 Special . | . . . . Kinetic 23 | 2 . . 21 Thermal . | . . . . Explosive 13 | . . . 13 Electromagnetic . | . . . . Robot Hit Streak 5 | . . . 5 Robot Miss Streak 3 | . . . 3 Penetration Max . | . . . . Secondary Targets . | . . . . Shots Hit Robots 18 | . . . 18 Core Hits 27 | . . . 27 Critical Hits . | . . . . Critical Kills . | . . . . Critical Parts Destroyed . | . . . . Melee Attacks . | . . . . Impact . | . . . . Slashing . | . . . . Piercing . | . . . . Sneak Attacks . | . . . . Combat Hostiles . | . . . . Follow-up Attacks . | . . . . Damage Inflicted 1020 | 7 . . 1013 Guns 118 | 7 . . 111 Cannons . | . . . . Explosions 902 | . . . 902 Melee . | . . . . Ramming . | . . . . Kinetic 118 | 7 . . 111 Thermal 272 | . . . 272 Explosive 610 | . . . 610 Electromagnetic 20 | . . . 20 Impact . | . . . . Slashing . | . . . . Piercing . | . . . . Highest Corruption . | . . . . Average Corruption . | . . . . Corruption Purged . | . . . . Overload Shots . | . . . . Overflow Damage 40 | . . . 40 Projectiles . | . . . . Explosions 40 | . . . 40 Melee . | . . . . Knockbacks . | . . . . Impact . | . . . . Kinetic . | . . . . Secondary . | . . . . Self-Inflicted Damage 122 | . . . 122 Shots 3 | . . . 3 Rammed . | . . . . Targets Rammed . | . . . . Kicked . | . . . . Crushed . | . . . . Highest Temperature 1 | . . . 1 Average Temperature 1 | . . . 1 Received Heat Transfer 189 | . . 9 180 Siege Activations . | . . . . Robots Corrupted . | . . . . Combat Hostiles . | . . . . Parts Fried . | . . . . Impact Corruptions . | . . . . Robots Melted . | . . . . Combat Hostiles . | . . . . Parts Melted . | . . . . Heat Transferred 200 | . . . 200 Parts Sabotaged . | . . . . Parts Stolen . | . . . . Parts Stripped . | . . . . Power Chain Reactions . | . . . . Missiles Intercepted . | . . . . Alert | -11 -10 -10 -9 ------- Run | Scr Mat Min Mat Peak Influence 409 | . . 60 409 Initial 23 | . . . 23 Average 103 | . . 26 217 Maximum Alert Level 2 | . . . 2 Low Security (%) 76 | 100 100 100 46 Level 1 21 | . . . 50 Level 2 1 | . . . 2 Level 3 . | . . . . Level 4 . | . . . . Level 5 . | . . . . High Security . | . . . . Max Security . | . . . . Squads Dispatched 2 | . . . 2 Investigation . | . . . . Extermination . | . . . . Reinforcement 2 | . . . 2 Assault . | . . . . Garrison . | . . . . Intercept . | . . . . Construction Impeded 1 | . . . 1 Haulers Reinforced . | . . . . Stealth | -11 -10 -10 -9 --------- Run | Scr Mat Min Mat Distress Signals 1 | . . . 1 Communications Jammed . | . . . . Distress Signals . | . . . . Times Spotted 23 | . . 3 20 Peak Tracking Total 8 | . 1 2 8 Tactical Retreats 5 | . . 2 3 Traps | -11 -10 -10 -9 ------- Run | Scr Mat Min Mat Traps Triggered 1 | . . . 1 Indirectly . | . . . . Trap Hack Attempts . | . . . . Triggered . | . . . . Disarmed . | . . . . Reprogrammed . | . . . . Reused . | . . . . Traps Extracted . | . . . . Installed . | . . . . Triggered . | . . . . Machines | -11 -10 -10 -9 ---------- Run | Scr Mat Min Mat Machines Disabled 6 | . . . 6 Max in Single Turn 2 | . . . 2 Machines Sabotaged . | . . . . Garrisons Compromised . | . . . . Overloaded Fab Kills . | . . . . Fab Network Shutdowns . | . . . . Hacking | -11 -10 -10 -9 --------- Run | Scr Mat Min Mat Machines Accessed 2 | . 1 . 1 Terminals 2 | . 1 . 1 Fabricators . | . . . . Repair Stations . | . . . . Recycling Units . | . . . . Scanalyzers . | . . . . Garrison Access . | . . . . Total Hacks 2 | . 1 . 1 Successful 2 | . 1 . 1 Failed . | . . . . Catastrophic . | . . . . Database Lockouts . | . . . . Manual . | . . . . Terminals 2 | . 1 . 1 Fabricators . | . . . . Repair Stations . | . . . . Recycling Units . | . . . . Scanalyzers . | . . . . Garrison Access . | . . . . Terminal Hacks 2 | . 1 . 1 Record 1 | . . . 1 Dispatch Records 1 | . 1 . . Fabricator Hacks . | . . . . Repair Station Hacks . | . . . . Recycling Unit Hacks . | . . . . Scanalyzer . | . . . . Garrison Access Hacks . | . . . . Unauthorized Hacks . | . . . . Terminals . | . . . . Fabricators . | . . . . Repair Stations . | . . . . Recycling Units . | . . . . Scanalyzers . | . . . . Garrison Access . | . . . . Data Cores Recovered . | . . . . Used . | . . . . Hacking Detections 1 | . . . 1 Full Trace Events . | . . . . Feedback Events . | . . . . Feedback Blocked . | . . . . Robot Schematics Acquired . | . . . . Robots Built . | . . . . Matter . | . . . . Time . | . . . . Total Robot Build Rating . | . . . . Part Schematics Acquired . | . . . . Parts Built . | . . . . Matter . | . . . . Time . | . . . . Total Part Build Rating . | . . . . Parts Repaired . | . . . . Time . | . . . . Parts Recycled . | . . . . Recycled Matter . | . . . . Retrieved Matter . | . . . . Retrieved Components . | . . . . Parts Scanalyzed . | . . . . Part Schematics Acquired . | . . . . Parts Damaged . | . . . . Bothacking | -11 -10 -10 -9 ------------ Run | Scr Mat Min Mat Used RIF Installer . | . . . . Robots Hacked . | . . . . Non-combat . | . . . . Combat . | . . . . Robot Hacks Applied . | . . . . Relay Couplers Released . | . . . . Robots Rewired . | . . . . Allies Hacked . | . . . . Hacks Repelled . | . . . . Allies | -11 -10 -10 -9 -------- Run | Scr Mat Min Mat Total Allies . | . . . . Largest Group . | . . . . Highest-Rated Group . | . . . . Highest-Rated Ally . | . . . . Total Orders . | . . . . Ally Attacks . | . . . . Total Damage . | . . . . Kills . | . . . . Allies Corrupted . | . . . . Allies Melted . | . . . . Intel | -11 -10 -10 -9 ------- Run | Scr Mat Min Mat Robot Analysis Total . | . . . . Derelict Logs Recovered 1 | . . 1 . Drone Launches . | . . . . Drone Recoveries . | . . . . Exploration | -11 -10 -10 -9 ------------- Run | Scr Mat Min Mat Turns Passed 534 | 56 56 192 230 Spaces Moved 512 | 50 64 233 165 Core 22 | 7 . . 15 Treads 29 | . . . 29 Legs . | . . . . Wheels 461 | 43 64 233 121 Hover . | . . . . Flight . | . . . . Fastest Speed 50 | 50 80 80 80 Average Speed 86 | 75 80 80 102 Slowest Speed 200 | 80 80 80 200 Overloaded Moves . | . . . . Propulsion Burnouts . | . . . . Robots Hopped . | . . . . Cave-ins Triggered . | . . . . Exploration Rate (%) 22 | 3 20 43 25 Regions Visited 3 Branch Regions 1 Pre-discovered Areas . | . . . . Known Exits Taken . | . . . . Unknown Exits Taken 3 | 1 1 1 . Scrap Searched . | . . . . Spaces Dug . | . . . . Terrain Destroyed 37 | . . . 37 Melee . | . . . . Projectile . | . . . . AOE 37 | . . . 37 Terrain Rammed . | . . . . Walls Destroyed . | . . . . Machines Disabled . | . . . . Actions | -11 -10 -10 -9 --------- Run | Scr Mat Min Mat Total 564 | 66 69 237 192 Wait 4 | . . 4 . Move 509 | 49 63 232 165 Hop . | . . . . Pick Up 14 | 10 4 . . Fast Attach 7 | . . 1 6 Attach 8 | 6 . . 2 Detach . | . . . . Swap 1 | . . . 1 Drop 3 | . 2 . 1 Fire 18 | 1 . . 17 Melee . | . . . . Ram . | . . . . Kick . | . . . . Crush . | . . . . Escape Stasis . | . . . . Rewire . | . . . . Trap . | . . . . Miscellaneous . | . . . . Route ------- -11/Scrapyard -10/Materials -10/Mines -9/Materials (discovered 1 exit: [*Min]) History --------- Turn | Location | Event 11 | -11/Scrapyard | Discovered new exit (range 15) 57 | -11/Scrapyard | Entered Materials 103 | -10/Materials | Discovered new exit (range 6) 113 | -10/Materials | Entered Mines 121 | -10/Mines | Met a Derelict bent on vengeance 246 | -10/Mines | Discovered new exit (range 10) 305 | -10/Mines | Entered Materials 305 | -9/Materials | Evolved 2 slots: Propulsion x1, Utility x1 315 | -9/Materials | Build established: Mutant 456 | -9/Materials | Core integrity fell below 50% 492 | -9/Materials | Core integrity fell below 20% 505 | -9/Materials | Discovered new exit (range 13) 527 | -9/Materials | Lost 9 parts (1p3n5w) 535 | -9/Materials | Destroyed by EMP Trap Last Messages --------------- 00497_ U-05 Engineer lays Concrete. 00499_ U-05 Engineer builds a Wall. 00501_ R-06 Scavenger inserts Sml. Storage Unit into recycling unit. 00502_ R-06 Scavenger collects Imp. Ion Engine. 00503_ U-05 Engineer lays Concrete. 00504_ R-06 Scavenger inserts Assault Rifle into recycling unit. 00504_ U-05 Engineer lays Concrete. 00505_ EXIT=FOUND 00505_ U-05 Engineer builds a Wall. 00505_ U-05 Engineer lays Concrete. 00507_ R-06 Scavenger inserts Tractor Beam into recycling unit. 00509_ U-05 Engineer lays Concrete. 00510_ R-06 Scavenger inserts Wheel into recycling unit. 00535_ Triggered EMP Trap. 00535_ A bubble of electromagnetic force engulfs the area. 00535_ EMP Trap short circuited. 00535_ A bubble of electromagnetic force engulfs the area. 00535_ EMP Trap short circuited. 00535_ A bubble of electromagnetic force engulfs the area. 00535_ W-16 Scout destroyed. Map ----- +----------------------------------------------------+ | ?????????????????????????????????????????????????? | | ?????????????????????????????????????????????????? | | ?????????????????????????????????????????????????? | | ?????????????????????????????????????????????????? | | ?????????????????????????????????????????????????? | | ?????????????????????????????????????????????????? | | ?????????????????????????????????????????????????? | | ?????????????????????????????????????????????????? | | ?????????????????????????????????????????????????? | | ?????????????????????????????????????????????????? | | ?????????????????????????????????????????????????? | | ?????????????????????????????????????????????????? | | ?????????????????????????????????????????????????? | | ?????????????????????????????????????????????????? | | ?????????????????????????????????????????????????? | | ?????????????????????????????????????????????????? | | ?????????????????????????????????????????????????? | | ?????????????????????????????????????????????????? | | ?????????????????????????????????????????????????? | | ?????????????????????????????????????????????????? | | ????????????????????????####+######??????????????? | | ????????????????????????# k ???????????????? | | ????????????????????????# !%= ?????????????????? | | ??????????????????????### ???????????????????? | | ??????????????????????? #????????????????????? | | ????????????????????????#@ #????????????????????? | | ????????????????????????# #????????????????????? | | ????????????????????????# #????????????????????? | | ????????????????????????# #????????????????????? | | ?????????????????######## #????????????????????? | | ?????????????????# * # #????????????????????? | | ?????????????????# !# #????????????????????? | | ?????????????????# " " #sg #????????????????????? | | ?????????????????# "R" # ss#??????????? ????????? | | ?????????????????# """ + #??????????? ????????? | | ?????????????????# # g #??????????? ????????? | | ?######??????????##+##### #??????????? ????????? | | ##+######### ###?# #???????????^????????? | | ! #?# #??????????? ????????? | | < #?# #??????????? ????????? | | """ """ #?# #??????????# #???????? | | " "## """ "Y" #?# +??????????# #???????? | | ? ??????# """ #?# #??????????# T???????? | | ????????# #?? #??????????# #???????? | | ????????# ##? #??????????# #???????? | | ????????# " """ ??????????# #???????? | | ????????## " """ #?????????# #???????? | | ????###### " """ +?????????# #???????? | | ????# # [ #?????????# #???????? | | ????# # #?????????# #???????? | +----------------------------------------------------+ Best States ------------- Heat Dissipation 28 Energy Generation 10 Energy Capacity 125 Matter Stores 450 Matter Capacity 450 Sight Range 18 Terrain Scan Density 10 Evasion (%) 44 Recoil Reduction 2 Item Schematics ----------------- None Robot Schematics ------------------ None Fabricated ------------ Nothing Alien Tech Used ----------------- None Achievements -------------- None Challenges ------------ None Game ------ Seed WardroneBattleShifter Manual? 0 Play Time 00:11:44 Cumulative 11.4 hours Start 2021.05.18 @ 18:45:32 End 2021.05.18 @ 18:53:35 Sessions 1 Manual Loads 0 Difficulty Rogue Special Mode None Game No. 44 Rogue 44 Adventurer 0 Explorer 0 Win Type - Total 0 Types 0/0/0/0/0/0/0/0/0 Lore% 13 Gallery% 22 Achievement% 17 Wizard Run 0 Options --------- ASCII 1 Keyboard 0 Movement Mouse Keybinds 0 Fullscreen 1 Font 18/SmallcapsGlow Map View 76x50 Tactical HUD 1 Map Filters NONE Filters NONE Steam 1 RUN: 46ed9a1b-b34b-456d-b353-041f7bb0d036